bitfinex/quotes_BTCUSD_20220405
["timestamp","ask_amount","ask_price","bid_price","bid_amount"]
[1649145545611,0.32483498,46706.0,46705.0,0.3316242]
[1649145545710,0.05,46706.0,46705.0,0.3316242]
[1649145546912,0.05,46706.0,46705.0,0.6316242]
[1649145548318,0.05,46706.0,46705.0,0.3316242]
[1649145549517,0.05,46706.0,46705.0,0.1722322]
[1649145549667,0.05,46706.0,46705.0,0.3316242]
[1649145549868,0.05,46706.0,46705.0,0.0108292]
[1649145550019,0.05,46706.0,46705.0,0.1722322]
[1649145552072,0.05,46706.0,46705.0,0.4722322]
[1649145552173,0.05,46706.0,46705.0,0.47223116]
[1649145552429,0.05352439,46708.0,46705.0,0.51503116]
[1649145552531,0.05055208,46709.0,46706.0,0.21913807]
[1649145552532,0.05,46709.0,46706.0,0.21913807]
[1649145552628,0.05350941,46711.0,46707.0,0.53991907]
[1649145552736,0.05350941,46711.0,46710.0,0.17530378]
[1649145552833,0.05350941,46711.0,46710.0,0.34751494]
[1649145552929,0.05350941,46711.0,46710.0,0.17221116]
[1649145553282,0.05350941,46711.0,46710.0,0.34745909]
[1649145553833,0.04833714,46711.0,46710.0,0.34745909]
[1649145553932,0.04833714,46711.0,46710.0,0.17221116]
[1649145554134,0.04833714,46711.0,46710.0,0.34745909]
[1649145554732,0.04833714,46711.0,46710.0,0.17221116]
[1649145555435,0.04833714,46711.0,46710.0,0.01082816]
[1649145562166,0.04827315,46711.0,46710.0,0.01082816]
[1649145563670,0.04827315,46711.0,46710.0,0.33162316]
[1649145563870,0.04827315,46711.0,46710.0,0.01082816]
[1649145563971,0.04827315,46711.0,46710.0,0.33162316]
[1649145565074,0.04827315,46711.0,46710.0,0.17217316]
[1649145565273,0.04827315,46711.0,46710.0,0.01082816]
[1649145565375,0.04827315,46711.0,46710.0,0.33162316]
[1649145567231,0.04827315,46711.0,46710.0,0.38162316]
[1649145568287,0.04827315,46711.0,46710.0,0.33162316]
[1649145568390,0.04827315,46711.0,46710.0,0.38162316]
[1649145570747,0.3812424,46717.0,46716.0,0.21125784]
[1649145570843,0.54673541,46717.0,46716.0,0.21125784]
[1649145570944,0.86753041,46717.0,46716.0,0.21125784]
[1649145571088,0.54673541,46717.0,46716.0,0.21125784]
[1649145571382,0.86753041,46717.0,46716.0,0.21125784]
[1649145571480,0.54673541,46717.0,46716.0,0.21125784]
[1649145571979,0.86753041,46717.0,46716.0,0.21125784]
[1649145572080,0.59673541,46717.0,46716.0,0.21125784]
[1649145572681,0.4205424,46717.0,46716.0,0.21125784]
[1649145579194,0.4205424,46717.0,46716.0,0.2911535]
[1649145580246,0.4205424,46717.0,46716.0,0.21125784]
[1649145580350,0.7413374,46717.0,46716.0,0.21125784]
[1649145580748,0.59673541,46717.0,46716.0,0.21125784]
[1649145580855,0.4205424,46717.0,46716.0,0.21125784]
[1649145581751,0.4205424,46717.0,46716.0,0.222086]
[1649145586921,0.4205424,46717.0,46716.0,0.542881]
[1649145587220,0.26,46717.0,46716.0,0.542881]
[1649145587620,0.26,46717.0,46716.0,0.222086]
[1649145587725,0.26,46717.0,46716.0,0.842881]
[1649145587821,0.26,46717.0,46716.0,0.542881]
[1649145588221,0.26,46717.0,46716.0,0.842881]
[1649145588424,0.26,46717.0,46716.0,0.542881]
[1649145588530,0.26,46717.0,46716.0,0.222086]
[1649145588626,0.26,46717.0,46716.0,0.542881]
[1649145589025,0.26,46717.0,46716.0,0.222086]
[1649145589869,0.26,46717.0,46716.0,0.383361]
[1649145589967,0.26,46717.0,46716.0,0.542881]
[1649145590269,0.26,46717.0,46716.0,0.222086]
[1649145591170,0.26,46717.0,46716.0,0.22199301]
[1649145591296,0.26,46717.0,46716.0,0.21116485]
[1649145592476,0.26,46717.0,46716.0,0.22199301]
[1649145593674,0.26,46717.0,46716.0,0.54278801]
[1649145593771,0.26,46717.0,46716.0,0.22199301]
[1649145593871,0.26,46717.0,46716.0,0.54278801]
[1649145593972,0.26,46717.0,46716.0,0.22199301]
[1649145594070,0.26,46717.0,46716.0,0.38326801]
[1649145594170,0.26,46717.0,46716.0,0.22199301]
[1649145594371,0.26,46717.0,46716.0,0.54278801]
[1649145594473,0.26,46717.0,46716.0,0.38326901]
[1649145594573,0.26,46717.0,46716.0,0.22199301]
[1649145594773,0.26,46717.0,46716.0,0.54278801]
[1649145594873,0.26,46717.0,46716.0,0.22199301]
[1649145595127,0.26,46717.0,46716.0,0.54278801]
[1649145595224,0.26,46717.0,46716.0,0.22199301]
[1649145596084,0.26,46717.0,46716.0,0.54278801]
[1649145596176,0.26,46717.0,46716.0,0.22199301]
[1649145597525,0.26,46717.0,46716.0,0.54278801]
[1649145597624,0.26,46717.0,46716.0,0.22199301]
[1649145598927,0.26,46717.0,46716.0,0.54278801]
[1649145599028,0.26,46717.0,46716.0,0.38326901]
[1649145599130,0.26,46717.0,46716.0,0.54278801]
[1649145599229,0.26,46717.0,46716.0,0.22199301]
[1649145599530,0.26,46717.0,46716.0,0.54278801]
[1649145599681,0.26,46717.0,46716.0,0.22199301]
[1649145600031,0.26,46717.0,46716.0,0.54278801]
[1649145600134,0.26,46717.0,46716.0,0.22199301]
[1649145601130,0.322795,46721.0,46720.0,0.15002777]
[1649145602130,0.372795,46721.0,46720.0,0.15002777]
[1649145602530,0.052,46721.0,46720.0,0.15002777]
[1649145602631,0.322795,46721.0,46720.0,0.15002777]
[1649145603332,0.322795,46721.0,46720.0,0.23131842]
[1649145603737,0.002,46721.0,46720.0,0.23131842]
[1649145603832,0.322795,46721.0,46720.0,0.23131842]
[1649145604033,0.002,46721.0,46716.0,0.21116485]
[1649145604183,0.002,46721.0,46720.0,0.6410949]
[1649145604283,0.322795,46721.0,46720.0,0.6410949]
[1649145604385,0.322795,46721.0,46716.0,0.21116485]
[1649145604486,0.002,46721.0,46716.0,0.21116485]
[1649145605321,0.002,46721.0,46716.0,0.20616485]
[1649145605723,0.002,46721.0,46718.0,0.6410949]
[1649145605825,0.00258165,46721.0,46718.0,0.6410949]
[1649145605924,0.00258165,46721.0,46716.0,0.20616485]
[1649145606026,0.22287619,46721.0,46716.0,0.20616485]
[1649145606775,0.22229454,46721.0,46716.0,0.20616485]
[1649145606976,0.22287646,46721.0,46716.0,0.20616485]
[1649145607227,0.22287646,46721.0,46718.0,0.6410949]
[1649145607427,0.320795,46720.0,46716.0,0.20616485]
[1649145607528,0.22287646,46721.0,46716.0,0.20616485]
[1649145608029,0.22229454,46721.0,46716.0,0.20616485]
[1649145608229,0.22287646,46721.0,46716.0,0.20616485]
[1649145608717,0.22287646,46721.0,46718.0,0.6410949]
[1649145608821,0.05,46720.0,46718.0,0.6410949]
[1649145608926,0.05,46720.0,46718.0,0.6537151]
[1649145608927,0.05368089,46720.0,46718.0,0.6537151]
[1649145609069,0.05736178,46720.0,46718.0,0.0126202]
[1649145609169,0.00113316,46719.0,46718.0,0.0126202]
[1649145610319,0.00113316,46719.0,46718.0,0.6537151]
[1649145611173,0.00113316,46719.0,46718.0,0.67436569]
[1649145611273,0.21113316,46719.0,46718.0,0.67436569]
[1649145611572,0.26113316,46719.0,46718.0,0.67436569]
[1649145614272,0.26849494,46719.0,46718.0,0.67436569]
[1649145614926,0.44474087,46719.0,46718.0,0.67436569]
[1649145615878,0.43974087,46719.0,46718.0,0.67436569]
[1649145616122,0.26349494,46719.0,46718.0,0.99516069]
[1649145616224,0.43973983,46719.0,46718.0,0.99516069]
[1649145616320,0.43973983,46719.0,46718.0,0.67436569]
[1649145616422,0.43973983,46719.0,46718.0,0.99516069]
[1649145616626,0.43973983,46719.0,46718.0,0.67436569]
[1649145616771,0.43973983,46719.0,46718.0,0.83561769]
[1649145616870,0.43973983,46719.0,46718.0,0.67436569]
[1649145617071,0.43973983,46719.0,46718.0,0.99516069]
[1649145617423,0.26349494,46719.0,46718.0,0.99516069]
[1649145618577,0.26349494,46719.0,46718.0,1.17050818]
[1649145618978,0.26349494,46719.0,46718.0,0.99516069]
[1649145619629,0.26349494,46719.0,46718.0,1.17047213]
[1649145619729,0.26349494,46719.0,46718.0,1.37389516]
[1649145619979,0.26349494,46719.0,46718.0,1.3221262]
[1649145620377,0.21849494,46719.0,46718.0,1.33295031]
[1649145620479,0.21849494,46719.0,46718.0,2.64055445]
[1649145621284,0.05350379,46720.0,46719.0,2.35602193]
[1649145621402,0.05350379,46720.0,46719.0,2.59716559]
[1649145621482,0.05350379,46720.0,46719.0,2.86625772]
[1649145621586,0.05350379,46720.0,46719.0,2.9898002]
[1649145621685,0.05350379,46720.0,46719.0,3.57165003]
[1649145621785,0.05350379,46720.0,46719.0,3.36338212]
[1649145621882,0.05350379,46720.0,46719.0,3.37600232]
[1649145623188,0.26350379,46720.0,46719.0,3.37600232]
[1649145623288,0.31350379,46720.0,46719.0,3.37600232]
[1649145623388,0.31350379,46720.0,46719.0,1.07600232]
[1649145623923,0.31350379,46720.0,46719.0,1.37477977]
[1649145624322,0.31350379,46720.0,46719.0,1.07600232]
[1649145625727,0.31350379,46720.0,46719.0,1.25119108]
[1649145626077,0.31350379,46720.0,46719.0,1.17600232]
[1649145626378,0.31350379,46720.0,46719.0,1.35118733]
[1649145626982,0.31350379,46720.0,46719.0,1.17600232]
[1649145627084,0.31350379,46720.0,46719.0,1.85119156]
[1649145627232,0.31350379,46720.0,46719.0,2.15000531]
[1649145627374,0.31350379,46720.0,46719.0,1.85119156]
[1649145631070,0.04787516,46722.0,46720.0,1.75]
[1649145631170,0.04787516,46722.0,46721.0,1.00100928]
[1649145631273,0.04787516,46722.0,46721.0,1.16224928]
[1649145631371,0.04787516,46722.0,46721.0,1.18289987]
[1649145631475,0.04787516,46722.0,46721.0,1.82399477]
[1649145631671,0.04787516,46722.0,46721.0,1.52399477]
[1649145631772,0.04787516,46722.0,46721.0,1.53661497]
[1649145633928,0.25787516,46722.0,46721.0,1.53661497]
[1649145634874,0.21,46722.0,46721.0,2.24440697]
[1649145634973,0.21,46722.0,46721.0,2.29440697]
[1649145637280,0.21,46722.0,46721.0,1.64010697]
[1649145637379,0.21,46722.0,46721.0,1.44992191]
[1649145637483,0.21,46722.0,46721.0,1.43909769]
[1649145637982,0.21,46722.0,46721.0,2.68126778]
[1649145638583,0.21,46722.0,46721.0,2.76116344]
[1649145638672,0.21,46722.0,46721.0,2.692092]
[1649145638875,0.21,46722.0,46721.0,2.91485337]
[1649145640425,0.21,46722.0,46721.0,3.12614141]
[1649145641277,0.01339782,46722.0,46721.0,3.12614141]
[1649145641376,0.01339782,46722.0,46721.0,3.00338004]
[1649145641579,0.01339782,46722.0,46721.0,3.12611546]
[1649145641928,0.01339782,46722.0,46721.0,3.00338004]
[1649145642783,0.01339782,46722.0,46721.0,3.12610976]
[1649145643131,0.01339782,46722.0,46721.0,2.62610976]
[1649145643232,0.01339782,46722.0,46721.0,2.50338004]
[1649145643431,0.01339782,46722.0,46721.0,2.62611707]
[1649145643732,0.01339782,46722.0,46721.0,2.50338004]
[1649145644535,0.01339782,46722.0,46721.0,2.62585491]
[1649145646133,0.01339782,46722.0,46721.0,2.41456687]
[1649145646535,0.01339782,46722.0,46721.0,2.41467051]
[1649145646635,0.01339782,46722.0,46721.0,1.17250042]
[1649145646784,0.01339782,46722.0,46721.0,1.41900842]
[1649145647085,0.01339782,46722.0,46721.0,1.29653355]
[1649145647585,0.01339782,46722.0,46721.0,1.29663719]
[1649145648488,0.01339782,46722.0,46721.0,0.99663719]
[1649145648589,0.01339782,46722.0,46721.0,0.99674083]
[1649145648838,0.01339782,46722.0,46721.0,0.98591661]
[1649145649641,0.01339782,46722.0,46721.0,0.98602025]
[1649145649880,0.01339782,46722.0,46721.0,1.62390682]
[1649145650275,0.01339782,46722.0,46721.0,1.32390682]
[1649145650675,0.01339782,46722.0,46721.0,1.32401046]
[1649145650978,0.01339782,46722.0,46721.0,0.99694811]
[1649145651725,0.01339782,46722.0,46721.0,0.99705175]
[1649145652227,0.01339782,46722.0,46721.0,1.28622753]
[1649145652330,0.052,46723.0,46722.0,2.8]
[1649145652440,0.164495,46730.0,46723.0,0.16123]
[1649145652441,0.004,46730.0,46723.0,0.16123]
[1649145652530,0.004,46730.0,46726.0,0.975038]
[1649145652627,0.004,46730.0,46726.0,1.18184115]
[1649145652727,0.004,46730.0,46729.0,0.46433143]
[1649145652827,0.004,46730.0,46729.0,0.56433143]
[1649145653028,0.004,46730.0,46729.0,0.68705885]
[1649145653783,0.004,46730.0,46729.0,0.68716249]
[1649145654234,0.004,46730.0,46729.0,0.67633954]
[1649145654338,0.004,46730.0,46729.0,1.04578155]
[1649145654435,0.004,46730.0,46729.0,0.94578155]
[1649145654537,0.004,46730.0,46729.0,0.82305413]
[1649145654837,0.004,46730.0,46729.0,0.82315777]
[1649145655337,0.004,46730.0,46729.0,0.83398072]
[1649145655638,0.214,46730.0,46729.0,0.83398072]
[1649145655943,0.214,46730.0,46729.0,0.83408436]
[1649145656641,0.20741,46730.0,46729.0,0.83408436]
[1649145656741,0.20741,46730.0,46729.0,0.88408436]
[1649145656843,0.20412,46730.0,46729.0,0.88408436]
[1649145656944,0.20412,46730.0,46729.0,0.884188]
[1649145657977,0.20412,46730.0,46729.0,0.88429164]
[1649145658177,0.20412,46730.0,46729.0,0.89691184]
[1649145658974,0.20412,46730.0,46729.0,0.89701548]
[1649145660081,0.20412,46730.0,46729.0,0.89711912]
[1649145660283,0.20412,46730.0,46729.0,0.73591412]
[1649145660385,0.50412,46730.0,46729.0,0.67509117]
[1649145661082,0.50412,46730.0,46729.0,0.67519481]
[1649145661183,0.50412,46730.0,46729.0,0.36711864]
[1649145661279,0.79744083,46730.0,46729.0,0.36711864]
[1649145661379,0.79744083,46730.0,46729.0,0.01324204]
[1649145661479,0.79744083,46730.0,46729.0,0.36711864]
[1649145662082,0.79744083,46730.0,46729.0,0.36722228]
[1649145662478,0.49744083,46730.0,46729.0,0.36722228]
[1649145662583,0.6550051,46730.0,46729.0,0.36722228]
[1649145662729,0.49744083,46730.0,46729.0,0.36722228]
[1649145664234,0.49744083,46730.0,46729.0,0.36732592]
[1649145666289,0.49744083,46730.0,46729.0,0.36742956]
[1649145666388,0.49744083,46730.0,46729.0,0.36732592]
[1649145667041,0.4849881,46730.0,46729.0,0.36732592]
[1649145667340,0.4849881,46730.0,46729.0,0.36742956]
[1649145668391,0.4849881,46730.0,46729.0,0.3675332]
[1649145669428,0.4849881,46730.0,46729.0,0.36763684]
[1649145669531,0.4849881,46730.0,46729.0,0.3675332]
[1649145670239,0.64249976,46730.0,46729.0,0.3675332]
[1649145670335,0.4849881,46730.0,46729.0,0.3675332]
[1649145670482,0.4849881,46730.0,46729.0,0.36763684]
[1649145670582,0.66101762,46730.0,46729.0,0.36763684]
[1649145670682,0.81854773,46730.0,46729.0,0.36763684]
[1649145670782,0.66101762,46730.0,46729.0,0.04865329]
[1649145670984,0.66101762,46730.0,46729.0,0.00093276]
[1649145671082,0.81855993,46730.0,46729.0,0.04865329]
[1649145671184,0.66101762,46730.0,46729.0,0.04865329]
[1649145671484,0.66101762,46730.0,46729.0,0.04875693]
[1649145671584,0.4849881,46730.0,46729.0,0.04875693]
[1649145671834,0.85,46729.0,46721.0,0.17520563]
[1649145671936,0.31481571,46722.0,46721.0,0.22520563]
[1649145672035,0.31481571,46722.0,46721.0,0.55682439]
[1649145672579,0.31481571,46722.0,46721.0,0.49610427]
[1649145672682,0.31481571,46722.0,46721.0,0.32089864]
[1649145672784,0.36481571,46722.0,46721.0,0.32089864]
[1649145672882,0.36481571,46722.0,46721.0,0.00010364]
[1649145672980,0.66142856,46722.0,46721.0,0.00010364]
[1649145673780,0.05350677,46723.0,46721.0,0.00010364]
[1649145674282,0.16052077,46723.0,46721.0,0.00010364]
[1649145674380,0.16052077,46723.0,46719.0,0.05602193]
[1649145674381,0.21784267,46722.0,46719.0,0.05602193]
[1649145674482,0.27544847,46721.0,46719.0,0.05602193]
[1649145674683,0.27534483,46721.0,46719.0,0.05602193]
[1649145675182,0.32534483,46721.0,46719.0,0.05602193]
[1649145676415,1.5,46720.0,46716.0,0.20616485]
[1649145676516,1.55352,46720.0,46716.0,0.20616485]
[1649145676615,0.20880201,46719.0,46716.0,0.20616485]
[1649145676714,0.31584167,46719.0,46716.0,0.20616485]
[1649145676815,0.10704,46718.0,46716.0,0.20616485]
[1649145677122,0.3176005,46718.0,46716.0,0.20616485]
[1649145678722,0.478161,46718.0,46716.0,0.20616485]
[1649145689482,0.478161,46718.0,46709.0,0.00055142]
[1649145689483,2.0,46716.0,46709.0,0.00055142]
[1649145689580,0.053525,46715.0,46709.0,0.00055142]
[1649145689687,0.26841818,46714.0,46704.0,0.01071]
[1649145689779,0.26841818,46714.0,46709.0,0.00055142]
[1649145689780,0.10705637,46713.0,46709.0,0.00055142]
[1649145689882,0.320795,46712.0,46709.0,0.00055142]
[1649145690031,0.26852055,46711.0,46709.0,0.00055142]
[1649145690133,0.05,46712.0,46711.0,0.07989566]
[1649145690335,0.370795,46712.0,46711.0,0.07989566]
[1649145690538,0.69029999,46712.0,46711.0,0.07989566]
[1649145690732,0.36950499,46712.0,46711.0,0.07989566]
[1649145690935,0.69029999,46712.0,46711.0,0.07989566]
[1649145691093,0.99029999,46712.0,46711.0,0.07989566]
[1649145691188,0.69029999,46712.0,46711.0,0.02560048]
[1649145691287,0.320795,46711.0,46709.0,0.0005514]
[1649145691389,0.320795,46711.0,46710.0,0.02560048]
[1649145691689,1.6,46710.0,46709.0,0.0005514]
[1649145691788,1.6,46710.0,46709.0,0.1705514]
[1649145691888,1.553537,46710.0,46709.0,0.1705514]
[1649145691991,1.553537,46710.0,46709.0,0.17]
[1649145692292,1.553537,46710.0,46698.0,0.01071]
[1649145692293,0.16061396,46709.0,46707.0,0.00055141]
[1649145692389,0.3,46708.0,46707.0,0.00055141]
[1649145692493,0.6204263,46708.0,46707.0,0.00055141]
[1649145692594,0.6704263,46708.0,46707.0,0.00055141]
[1649145692792,1.75,46707.0,46697.0,0.01071]
[1649145692894,0.053539,46705.0,46696.0,0.01071]
[1649145692991,0.70121078,46704.0,46695.0,0.01071]
[1649145693095,0.22748725,46696.0,46695.0,0.01071]
[1649145693194,0.3704263,46708.0,46700.0,0.04713961]
[1649145693195,0.07756287,46702.0,46700.0,0.04713961]
[1649145693293,0.29716073,46701.0,46700.0,0.04713961]
[1649145693392,0.34716073,46701.0,46700.0,0.04713961]
[1649145693494,0.40069862,46701.0,46700.0,0.04713961]
[1649145694746,0.90624398,46701.0,46700.0,0.04713961]
[1649145695491,1.22703898,46701.0,46700.0,0.04713961]
[1649145695944,1.23774898,46701.0,46700.0,0.04713961]
[1649145696043,1.43774898,46701.0,46700.0,0.04713961]
[1649145696143,0.320795,46697.0,46687.0,0.00434]
[1649145696242,0.13616369,46695.0,46687.0,0.00434]
[1649145696343,0.320795,46694.0,46687.0,0.00434]
[1649145696550,0.18616369,46695.0,46687.0,0.00434]
[1649145696644,0.29487754,46694.0,46687.0,0.00434]
[1649145696946,0.29487754,46694.0,46687.0,0.01505]
[1649145697647,0.053552,46693.0,46687.0,0.01505]
[1649145697748,0.10709911,46692.0,46687.0,0.00434]
[1649145697848,0.15709911,46692.0,46687.0,0.00434]
[1649145699286,0.19300911,46692.0,46687.0,0.00434]
[1649145700342,0.15709911,46692.0,46687.0,0.00434]
[1649145700644,0.73406122,46691.0,46687.0,0.00496134]
[1649145701593,0.73406122,46691.0,46687.0,0.00434]
[1649145701692,0.73406122,46691.0,46687.0,0.2622454]
[1649145701793,0.73406122,46691.0,46687.0,0.26286674]
[1649145701993,0.73406122,46691.0,46687.0,0.00496134]
[1649145702845,0.73406122,46691.0,46687.0,0.00434]
[1649145703047,0.73406122,46691.0,46687.0,0.00496134]
[1649145703998,0.73406122,46691.0,46687.0,0.00434]
[1649145704249,0.73406122,46691.0,46687.0,0.00496134]
[1649145705249,0.73406122,46691.0,46687.0,0.00434]
[1649145705450,0.73406122,46691.0,46687.0,0.00494192]
[1649145705552,1.03406122,46691.0,46687.0,0.00494192]
[1649145705654,0.02835259,46690.0,46687.0,0.00494192]
[1649145705753,0.08190459,46690.0,46687.0,0.00494192]
[1649145705854,0.13190459,46690.0,46687.0,0.00494192]
[1649145706434,0.13190459,46690.0,46687.0,0.00434]
[1649145706533,0.103552,46690.0,46687.0,0.00364]
[1649145706733,0.21065544,46690.0,46687.0,0.00364]
[1649145706838,0.05,46689.0,46687.0,0.00364]
[1649145710484,0.3,46688.0,46687.0,0.00364]
[1649145711132,0.35,46689.0,46687.0,0.00364]
[1649145711382,0.05,46689.0,46687.0,0.00364]
[1649145712390,0.35,46689.0,46687.0,0.00364]
[1649145712487,0.05,46689.0,46687.0,0.00364]
[1649145712687,0.10354734,46689.0,46687.0,0.00364]
[1649145712786,0.103552,46690.0,46687.0,0.00364]
[1649145712886,0.05,46688.0,46687.0,0.324435]
[1649145713390,0.064262,46690.0,46687.0,0.324435]
[1649145713592,0.064262,46690.0,46687.0,0.00364]
[1649145716687,0.11780497,46690.0,46687.0,0.00364]
[1649145716789,0.16780497,46690.0,46687.0,0.00364]
[1649145717434,0.15709497,46690.0,46687.0,0.00364]
[1649145719938,0.3,46689.0,46687.0,0.00364]
[1649145720439,0.26418997,46690.0,46687.0,0.00364]
[1649145721186,0.67399022,46691.0,46687.0,0.00364]
[1649145721488,0.64564,46691.0,46687.0,0.00364]
[1649145721788,0.05354297,46690.0,46687.0,0.00364]
[1649145722087,0.21418997,46690.0,46687.0,0.00364]
[1649145722687,0.3,46689.0,46687.0,0.00364]
[1649145722986,0.21418997,46690.0,46687.0,0.00364]
[1649145723089,0.05,46689.0,46687.0,0.00364]
[1649145724935,0.3,46688.0,46687.0,0.00364]
[1649145731895,0.06071,46689.0,46687.0,0.00364]
[1649145732333,0.3,46688.0,46687.0,0.00364]
[1649145733087,0.620795,46688.0,46687.0,0.00364]
[1649145733187,0.3,46688.0,46687.0,0.00364]
[1649145734839,0.05,46689.0,46687.0,0.00364]
[1649145736288,0.620795,46688.0,46687.0,0.00364]
[1649145736539,0.3,46688.0,46687.0,0.00364]
[1649145737039,0.05,46689.0,46687.0,0.00364]
[1649145737843,0.16780497,46690.0,46687.0,0.00364]
[1649145737942,0.11780497,46690.0,46687.0,0.00364]
[1649145738047,0.04970278,46689.0,46687.0,0.00364]
[1649145738340,0.11780497,46690.0,46687.0,0.00364]
[1649145738641,0.11780497,46690.0,46689.0,0.17]
[1649145738740,0.10709497,46690.0,46689.0,0.0108321]
[1649145738945,0.05354297,46690.0,46689.0,0.0108321]
[1649145739241,0.05354297,46690.0,46687.0,0.00419116]
[1649145740132,0.05354297,46690.0,46687.0,0.00364]
[1649145740433,0.16063997,46690.0,46687.0,0.00364]
[1649145740584,0.05,46689.0,46687.0,0.00364]
[1649145740683,0.05,46689.0,46688.0,0.17]
[1649145740886,0.35,46689.0,46688.0,0.17]
[1649145741387,0.35,46689.0,46687.0,0.00364]
[1649145742036,0.320795,46688.0,46687.0,0.00364]
[1649145742136,0.620795,46688.0,46687.0,0.00364]
[1649145745916,0.62051466,46688.0,46687.0,0.00364]
[1649145748932,0.72051466,46688.0,46687.0,0.00364]
[1649145751287,0.72051466,46688.0,46686.0,0.13093233]
[1649145751388,0.620795,46687.0,46686.0,0.13093233]
[1649145751638,0.670795,46687.0,46686.0,0.13093233]
[1649145752138,0.35,46687.0,46686.0,0.13093233]
[1649145752339,0.67086,46687.0,46686.0,0.13093233]
[1649145755961,0.05,46687.0,46686.0,0.13093233]
[1649145756261,0.103556,46689.0,46686.0,0.13093233]
[1649145756462,0.32086,46688.0,46686.0,0.13093233]
[1649145756560,0.103556,46689.0,46686.0,0.13093233]
[1649145757017,0.32086,46687.0,46686.0,0.13093233]
[1649145757113,0.103556,46689.0,46686.0,0.13093233]
[1649145759035,0.32086,46688.0,46686.0,0.13093233]
[1649145759537,0.32086,46688.0,46685.0,0.00058361]
[1649145760235,0.3,46687.0,46685.0,0.00058361]
[1649145760388,0.25559289,46686.0,46685.0,0.00058361]
[1649145760484,0.25559289,46686.0,46682.0,0.001]
[1649145760586,0.053555,46685.0,46682.0,0.001]
[1649145760686,0.053555,46685.0,46684.0,0.00058362]
[1649145761638,0.053555,46685.0,46682.0,0.001]
[1649145761835,0.053555,46685.0,46682.0,0.00158253]
[1649145762238,0.053555,46685.0,46684.0,0.01083442]
[1649145762746,0.053555,46686.0,46684.0,0.01083442]
[1649145762844,0.053555,46686.0,46684.0,0.29304673]
[1649145762945,0.053555,46686.0,46685.0,0.01083442]
[1649145763344,0.053555,46686.0,46684.0,0.29304673]
[1649145763446,0.053555,46686.0,46685.0,0.01083349]
[1649145764896,0.103555,46686.0,46685.0,0.01083349]
[1649145765098,0.424415,46686.0,46685.0,0.01083349]
[1649145765648,0.724415,46686.0,46685.0,0.01083349]
[1649145766294,0.724415,46686.0,46676.0,0.41421238]
[1649145766295,2.8,46684.0,46676.0,0.41421238]
[1649145766401,2.8,46684.0,46676.0,0.32645325]
[1649145766402,0.32086,46677.0,46676.0,0.32645325]
[1649145766497,2.8,46676.0,46670.0,0.48309976]
[1649145766597,0.32086,46675.0,46670.0,0.21963368]
[1649145766695,0.32086,46675.0,46664.0,0.2391]
[1649145766696,0.5,46674.0,46664.0,0.48309976]
[1649145766796,0.32086,46673.0,46662.0,0.21963368]
[1649145766892,0.17633566,46672.0,46662.0,0.21963368]
[1649145766994,0.17633566,46672.0,46663.0,0.01072]
[1649145767093,0.17633566,46672.0,46661.0,0.21963368]
[1649145767203,0.05,46673.0,46665.0,0.320852]
[1649145767294,0.05,46673.0,46670.0,0.15916651]
[1649145767392,0.05,46673.0,46671.0,0.162056]
[1649145767393,0.103561,46673.0,46671.0,0.162056]
[1649145767493,0.053561,46673.0,46672.0,0.33163489]
[1649145767597,0.33626885,46674.0,46672.0,0.01083489]
[1649145767692,0.33626885,46674.0,46666.0,0.01071]
[1649145767693,0.33626885,46674.0,46673.0,0.01083535]
[1649145768693,0.44339085,46674.0,46673.0,0.01083535]
[1649145769094,0.44339085,46674.0,46666.0,0.01071]
[1649145769193,0.053567,46670.0,46665.0,0.32086]
[1649145769295,0.053567,46670.0,46667.0,0.162064]
[1649145769393,0.053567,46670.0,46664.0,0.32086]
[1649145769494,0.3179096,46666.0,46665.0,0.27159955]
[1649145769594,0.3179096,46666.0,46665.0,0.4445139]
[1649145769753,0.25817558,46666.0,46665.0,0.4445139]
[1649145770093,0.25817558,46666.0,46665.0,0.17291435]
[1649145771195,0.25817558,46666.0,46665.0,0.4821628]
[1649145771295,0.25780146,46666.0,46665.0,0.4821628]
[1649145771643,0.25780146,46666.0,46665.0,0.17291435]
[1649145772597,0.25780146,46666.0,46665.0,0.39455038]
[1649145772696,0.25780146,46666.0,46665.0,0.17291435]
[1649145773300,0.25780146,46666.0,46663.0,0.00062111]
[1649145773503,0.31137946,46666.0,46663.0,0.00062111]
[1649145773646,0.31137946,46666.0,46664.0,0.22821114]
[1649145773752,0.407155,46665.0,46659.0,0.001]
[1649145773848,0.457155,46665.0,46659.0,0.01172]
[1649145773946,0.60794277,46665.0,46662.0,0.00062112]
[1649145774194,0.457155,46665.0,46662.0,0.00062112]
[1649145774947,0.457155,46665.0,46659.0,0.001]
[1649145775149,0.457155,46665.0,46661.0,0.00060052]
[1649145776150,0.457155,46665.0,46659.0,0.001]
[1649145776401,0.457155,46665.0,46661.0,0.00060053]
[1649145776750,0.157155,46665.0,46661.0,0.00060053]
[1649145777399,0.157155,46665.0,46659.0,0.001]
[1649145777593,0.157155,46665.0,46661.0,0.00060053]
[1649145778599,0.157155,46665.0,46659.0,0.001]
[1649145778849,0.157155,46665.0,46661.0,0.0005817]
[1649145779602,0.367155,46665.0,46661.0,0.0005817]
[1649145779804,0.367155,46665.0,46659.0,0.001]
[1649145779906,0.903579,46664.0,46652.0,0.32086]
[1649145780003,1.203579,46664.0,46661.0,0.0005817]
[1649145780102,1.010736,46664.0,46661.0,0.0005817]
[1649145780305,0.05,46663.0,46661.0,0.0005817]
[1649145780405,0.05,46663.0,46662.0,0.162108]
[1649145780555,0.05,46663.0,46662.0,0.32086]
[1649145781241,0.05,46663.0,46660.0,0.00058171]
[1649145781336,0.4706618,46661.0,46660.0,0.32149571]
[1649145781536,0.5206618,46661.0,46660.0,0.33233419]
[1649145782138,0.5206618,46661.0,46660.0,0.33175248]
[1649145783390,0.4706618,46661.0,46660.0,0.33175248]
[1649145784092,0.5206618,46661.0,46660.0,0.33175248]
[1649145784195,0.5206618,46661.0,46660.0,0.17281948]
[1649145784292,0.5206618,46661.0,46660.0,0.33175248]
[1649145785589,0.4706618,46661.0,46660.0,0.33175248]
[1649145785690,0.4706618,46661.0,46660.0,0.320914]
[1649145785792,0.4706618,46661.0,46660.0,0.33175148]
[1649145785892,0.4706618,46661.0,46660.0,0.36350344]
[1649145788886,0.4706618,46661.0,46660.0,0.33175148]